Cogmind - Beta 13 @@@ ROGUE MODE // 2024.06.30 @ 08:47:47 Player: buwwet Result: Destroyed by G-47 Trooper with Particle Gun Performance ------------- Evolutions (0) 0 Regions Visited (2) 400 Robots Destroyed (16) 80 Value Destroyed (463) 463 Prototype IDs (0) 0 Alien Tech Used (0) 0 Bonus (0) 0 TOTAL SCORE: 943 Bonus ------- None Cogmind --------- Core Integrity 0/250 Matter 300/300 Energy 96/100 System Corruption 0% Temperature Cool (9) Movement Core (400) Ox7 Location -10/Mines Parts ------- > --- POWER (1) -------- (None) > --- PROPULSION (2) --- (None) > --- UTILITY (2) ------ Large Storage Unit Visual Processing Unit > --- WEAPON (2) ------- Mining Claw > --- INVENTORY (15) --- Light Nuclear Core Hover Unit Hover Unit Heat Sink Small Storage Unit Sensor Array Sensor Array Signal Interpreter Peak State ------------ > --- POWER ------------ Light Ion Engine > --- PROPULSION ------- Light Treads Aluminum Leg > --- UTILITY ---------- Small Storage Unit Visual Processing Unit > --- WEAPON ----------- Small Laser Particle Gun > --- INVENTORY -------- Ion Engine Light Nuclear Core Light Treads Aluminum Leg Hover Unit Hover Unit Signal Interpreter Assault Rifle [Rating: 10] Favorites ----------- Power Light Ion Engine Engine Light Ion Engine Propulsion Light Treads Treads Light Treads Leg Aluminum Leg Utility Small Storage Unit Storage Small Storage Unit Processor Visual Processing Unit Weapon Small Laser Energy Gun Small Laser Ballistic Gun Assault Rifle Slashing Weapon Mining Claw Build | -11 -10 -10 ------- Run | Yrd Mat Min Slots Evolved . | . . . Power . | . . . Propulsion . | . . . Utility . | . . . Weapon . | . . . Parts Attached 24 | 6 17 1 Power 3 | 1 2 . Engine 3 | 1 2 . Core . | . . . Reactor . | . . . Propulsion 7 | 2 5 . Treads 5 | 2 3 . Leg 2 | . 2 . Wheel . | . . . Hover . | . . . Flight . | . . . Utility 3 | 1 2 . Device . | . . . Storage 2 | 1 1 . Processor 1 | . 1 . Hackware . | . . . Protection . | . . . Artifact . | . . . Weapon 11 | 2 8 1 Energy Gun 9 | 1 7 1 Energy Cannon . | . . . Ballistic Gun 1 | 1 . . Ballistic Cannon . | . . . Launcher . | . . . Special Weapon . | . . . Impact Weapon . | . . . Slashing Weapon 1 | . 1 . Piercing Weapon . | . . . Special Melee Weapon . | . . . Unidentified Prototypes . | . . . Parts Lost 7 | . 2 5 Power 1 | . . 1 Propulsion 4 | . 2 2 Utility . | . . . Weapon 2 | . . 2 Highest Loss Streak 5 | . 1 5 To Critical Strikes . | . . . Average Slot Usage (%) 93 | . 95 68 Engine 13 | . 13 4 Treads 18 | . 18 16 Leg 7 | . 8 . Storage 14 | . 14 14 Processor 10 | . 10 14 Energy Gun 21 | . 22 4 Ballistic Gun 1 | . 2 . Slashing Weapon 3 | . 3 14 Naked Turns . | . . . Heaviest Build 28 | 11 28 28 Greatest Support 40 | 40 40 40 Greatest Overweight (x) 3 | . 3 1 Average Overweight (x) . | . . . Largest Inventory Capacity 15 | 8 15 15 Average Capacity 8 | 7 8 15 Most Carried 9 | 4 9 9 Average Carried 6 | 2 6 8 Final Capacity 15 | 8 15 15 Final Carried 9 | 4 9 8 Class Distribution -------------------- 100% | Mutant Dominant Class ---------------- Mutant | -10/Materials Mutant | -10/Mines Resources | -11 -10 -10 ----------- Run | Yrd Mat Min Matter Collected 462 | 169 293 . Remotely . | . . . Salvage Created 573 | . 573 . Parts 34 | . 34 . Haulers Intercepted . | . . . Recyclers Shooed . | . . . Parts Field Recycled . | . . . Retrieved Matter . | . . . Parts Self-Destructed . | . . . Prevented . | . . . Kills | -11 -10 -10 ------- Run | Yrd Mat Min Combat Hostiles Destroyed 11 | . 11 . Guns 11 | . 11 . Classes Destroyed 4 | . 4 . Worker 2 | . 2 . Operator 1 | . 1 . Watcher 2 | . 2 . Grunt 11 | . 11 . Best Kill Streak 2 | . 2 . Combat Bots Only 2 | . 2 . Max Kills in Single Turn 2 | . 2 . Gunslinging . | . . . Exploded . | . . . Melee . | . . . Uniques/NPCs Destroyed . | . . . Combat | -11 -10 -10 -------- Run | Yrd Mat Min Hostile Shots Fired 110 | . 70 40 Missed 29 | . 22 7 Damage Taken 1087 | . 608 479 Core 257 | . 94 163 Absorbed by Shields . | . . . Core Remaining (%) 100 | 100 . . Volleys Fired 46 | . 43 3 Largest 2 | . 2 1 Hottest 105 | . 105 40 Shots Fired 89 | . 86 3 Gun 89 | . 86 3 Cannon . | . . . Launcher . | . . . Special . | . . . Kinetic 14 | . 14 . Thermal 75 | . 72 3 Explosive . | . . . Electromagnetic . | . . . Robot Hit Streak 12 | . 12 6 Robot Miss Streak 2 | . 2 . Penetration Max . | . . . Secondary Targets 1 | . 1 . Max Gunslinging Chain 1 | . 1 . Shots Hit Robots 74 | . 67 7 Core Hits 31 | . 30 1 Critical Kills . | . . . Critical Parts Destroyed . | . . . Critical Strikes 2 | . 2 . Burn 2 | . 2 . Melee Attacks 18 | . 4 14 Impact . | . . . Slashing 18 | . 4 14 Piercing . | . . . Sneak Attacks 2 | . 2 . Combat Hostiles . | . . . Follow-up Attacks . | . . . Damage Inflicted 1117 | 5 984 128 Guns 885 | . 853 32 Cannons . | . . . Explosions . | . . . Melee 227 | . 131 96 Ramming 5 | 5 . . Kinetic 125 | . 125 . Thermal 760 | . 728 32 Explosive . | . . . Electromagnetic . | . . . Impact . | . . . Slashing 227 | . 131 96 Piercing . | . . . Highest Corruption . | . . . Average Corruption . | . . . Corruption Purged . | . . . Corruption Blocked . | . . . Overload Shots . | . . . Overflow Damage 15 | . 15 . Projectiles . | . . . Explosions . | . . . Melee 15 | . 15 . Knockbacks . | . . . Impact . | . . . Kinetic . | . . . Secondary . | . . . Self-Inflicted Damage . | . . . Shots . | . . . Rammed 1 | 1 . . Targets Rammed 1 | 1 . . Kicked . | . . . Crushed . | . . . Highest Temperature 270 | . 270 52 Average Temperature 64 | . 65 31 Received Heat Transfer 639 | . 342 297 Siege Activations . | . . . Robots Corrupted . | . . . Combat Hostiles . | . . . Parts Fried . | . . . Impact Corruptions . | . . . Robots Melted . | . . . Combat Hostiles . | . . . Parts Melted 5 | . 5 . Heat Transferred 1911 | . 1836 75 Parts Sabotaged . | . . . Parts Stolen . | . . . Parts Stripped . | . . . Power Chain Reactions . | . . . Alert | -11 -10 -10 ------- Run | Yrd Mat Min Peak Influence 232 | . 232 42 Initial 42 | . . 42 Average 90 | . 105 11 Maximum Alert Level 1 | . 1 . Low Security (%) 91 | 100 89 100 Level 1 8 | . 10 . Level 2 . | . . . Level 3 . | . . . Level 4 . | . . . Level 5 . | . . . High Security . | . . . Max Security . | . . . Squads Dispatched 2 | . 2 . Investigation . | . . . Extermination . | . . . Reinforcement 2 | . 2 . Assault . | . . . Garrison . | . . . Intercept . | . . . Searches Triggered . | . . . Construction Impeded . | . . . Haulers Reinforced . | . . . Active Scanning Responses . | . . . Cargo Convoy Interrupts . | . . . Stealth | -11 -10 -10 --------- Run | Yrd Mat Min Distress Signals 1 | . 1 . Communications Jammed . | . . . Distress Signals . | . . . Times Spotted 24 | . 22 2 Peak Tracking Total 4 | . 4 2 Tactical Retreats 1 | . 1 . Traps | -11 -10 -10 ------- Run | Yrd Mat Min Traps Triggered 4 | . 4 . Indirectly . | . . . Trap Hack Attempts . | . . . Triggered . | . . . Disarmed . | . . . Reprogrammed . | . . . Reused . | . . . Traps Extracted . | . . . Installed . | . . . Triggered . | . . . Machines | -11 -10 -10 ---------- Run | Yrd Mat Min Machines Disabled . | . . . Max in Single Turn . | . . . Machines Repaired . | . . . Machines Dismantled . | . . . Machines Sabotaged . | . . . Overloaded Fab Kills . | . . . Hacking | -11 -10 -10 --------- Run | Yrd Mat Min Machines Accessed 2 | . 2 . Terminals 2 | . 2 . Fabricators . | . . . Repair Stations . | . . . Recycling Units . | . . . Scanalyzers . | . . . Garrison Access . | . . . Total Hacks 4 | . 4 . Successful . | . . . Failed 4 | . 4 . Catastrophic 1 | . 1 . Database Lockouts . | . . . Manual 3 | . 3 . Terminals 4 | . 4 . Fabricators . | . . . Repair Stations . | . . . Recycling Units . | . . . Scanalyzers . | . . . Garrison Access . | . . . Terminal Hacks . | . . . Fabricator Hacks . | . . . Repair Station Hacks . | . . . Recycling Unit Hacks . | . . . Scanalyzer . | . . . Garrison Access Hacks . | . . . Unauthorized Hacks . | . . . Terminals . | . . . Fabricators . | . . . Repair Stations . | . . . Recycling Units . | . . . Scanalyzers . | . . . Garrison Access . | . . . Data Cores Recovered . | . . . Used . | . . . Hacking Detections 2 | . 2 . Full Trace Events . | . . . Feedback Events . | . . . Feedback Blocked . | . . . Robot Schematics Acquired . | . . . Robots Built . | . . . Authchips . | . . . Time . | . . . Total Robot Build Rating . | . . . Part Schematics Acquired . | . . . Parts Built . | . . . Authchips . | . . . Time . | . . . Total Part Build Rating . | . . . Parts Repaired . | . . . Time . | . . . Parts Recycled . | . . . Recycled Matter . | . . . Retrieved Matter . | . . . Retrieved Components . | . . . Parts Scanalyzed . | . . . Part Schematics Acquired . | . . . Parts Damaged . | . . . Bothacking | -11 -10 -10 ------------ Run | Yrd Mat Min Used RIF Installer . | . . . Robots Hacked . | . . . Non-combat . | . . . Combat . | . . . Robot Hacks Applied . | . . . Relay Couplers Released . | . . . Fabnet Peak Effective % . | . . . Robots Rewired . | . . . Allies Hacked . | . . . Hacks Repelled . | . . . Allies | -11 -10 -10 -------- Run | Yrd Mat Min Total Allies . | . . . Largest Group . | . . . Highest-Rated Group . | . . . Highest-Rated Ally . | . . . Total Orders . | . . . Ally Attacks . | . . . Total Damage . | . . . Kills . | . . . Allies Corrupted . | . . . Allies Melted . | . . . Intel | -11 -10 -10 ------- Run | Yrd Mat Min Robot Analysis Total . | . . . Derelict Logs Recovered . | . . . Drone Launches . | . . . Drone Recoveries . | . . . Exploration | -11 -10 -10 ------------- Run | Yrd Mat Min Turns Passed 1285 | 124 1104 57 Spaces Moved 593 | 73 515 5 Core 13 | 6 7 . Treads 493 | 67 421 5 Legs 87 | . 87 . Wheels . | . . . Hover . | . . . Flight . | . . . Fastest Speed 50 | 50 100 160 Average Speed 163 | 150 165 192 Slowest Speed 240 | 160 200 240 Overloaded Moves . | . . . Propulsion Burnouts . | . . . Robots Hopped . | . . . Cave-ins Triggered . | . . . Exploration Rate (%) 26 | 5 71 3 Regions Visited 2 Branch Regions 1 Pre-discovered Areas . | . . . Known Exits Taken . | . . . Unknown Exits Taken 2 | 1 1 . Scrap Searched . | . . . Spaces Dug 1 | . 1 . Terrain Destroyed 1 | . 1 . Melee 1 | . 1 . Projectile . | . . . AOE . | . . . Terrain Rammed . | . . . Walls Destroyed . | . . . Machines Disabled . | . . . Actions | -11 -10 -10 --------- Run | Yrd Mat Min Total 779 | 83 672 24 Wait 76 | . 75 1 Move 591 | 72 514 5 Hop . | . . . Pick Up 16 | 4 12 . Fast Attach 14 | 6 8 . Attach 3 | . 2 1 Detach . | . . . Swap 7 | . 7 . Drop 7 | . 7 . Fire 46 | . 43 3 Melee 18 | . 4 14 Ram . | . . . Kick . | . . . Crush 1 | 1 . . Escape Stasis . | . . . Rewire . | . . . Trap . | . . . Miscellaneous . | . . . Route ------- -11/Scrapyard -10/Materials (discovered 3 exits: [*Mat] / [*Min x2]) -10/Mines History --------- Turn | Location | Event 9 | -11/Scrapyard | Discovered new exit (range 15) 125 | -11/Scrapyard | Entered Materials 125 | -10/Materials | Discovered new exit (range 8) 304 | -10/Materials | Build established: Mutant 373 | -10/Materials | Discovered new exit (range 8) 990 | -10/Materials | Discovered new exit (range 17) 1229 | -10/Materials | Entered Mines 1259 | -10/Mines | Core integrity fell below 50% 1279 | -10/Mines | Core integrity fell below 20% 1286 | -10/Mines | Destroyed by G-47 Trooper with Particle Gun Last Messages --------------- 00990_ K-01 Serf collects debris. 00990_ EXIT=FOUND 00992_ Sneak attack on A-02 Transporter. 00993_ K-01 Serf collects debris. 01129_ Acquired Sensor Array. 01217_ K-01 Serf cleans the Material Processor. 01219_ Acquired 18 matter. 01221_ K-01 Serf cleans the Machine. 01224_ K-01 Serf cleans the Material Processor. 01228_ K-01 Serf cleans the Machine. LOCATION=UNKNOWN GOAL=ESCAPE Something is scanning the area. 01233_ Particle Gun destroyed. 01239_ Critical hit (Burn: +37). 01243_ Lgt. Ion Engine destroyed. 01246_ Lgt. Treads destroyed. 01248_ Sml. Laser destroyed. 01264_ Critical hit (Burn: +37). 01276_ Lgt. Treads destroyed. Map ----- +----------------------------------------------------+ | | | | | | | | | | | | | | | | | ??????????????????????????????????? | | ??????????????????????????????????? | | ??????????????????????????????????? | | ??????????????????????????????????? | | ??????????????????????????????????? | | ??????????????????????????????????? | | ??????????????????????????????????? | | ??????????????????????????????????? | | ??????????????????????????????????? | | ??????????????????????????????????? | | ??????????????????????????????????? | | ??????????????????????????????????? | | ??????????????????????????????????? | | ??????????????????????????????????? | | ?#########????????????????????????? | | ?# #????????????????????????? | | ?# """ ##### #??????????????????? | | ?# """ gg@ #??????????????????? | | ?# """ #######??????????????????? | | ?# #????????????????????????? | | ?# #????????????????????????? | | ?# #????????????????????????? | | ?#########????????????????????????? | | ??????????????????????????????????? | | ??????????????????????????????????? | | ??????????????????????????????????? | | ??????????????????????????????????? | | ??????????????????????????????????? | | ??????????????????????????????????? | | ??????????????????????????????????? | | ??????????????????????????????????? | | ??????????????????????????????????? | | ??????????????????????????????????? | | ??????????????????????????????????? | | ??????????????????????????????????? | | ??????????????????????????????????? | | ??????????????????????????????????? | | ??????????????????????????????????? | | ??????????????????????????????????? | | ??????????????????????????????????? | | ??????????????????????????????????? | | ??????????????????????????????????? | +----------------------------------------------------+ Best States ------------- Heat Dissipation 25 Energy Generation 10 Energy Capacity 125 Matter Stores 300 Matter Capacity 300 Sight Range 18 Terrain Scan Density 10 Evasion (%) 40 Recoil Reduction 2 Item Schematics ----------------- None Robot Schematics ------------------ None Fabricated ------------ Nothing Alien Tech Used ----------------- None Achievements -------------- None Challenges ------------ None Game ------ Seed AlloyBeamAccelerator Manual? 0 Play Time 00:10:43 Cumulative 21.9 hours Start 2024.06.30 @ 08:37:27 End 2024.06.30 @ 08:47:47 Sessions 1 Manual Loads 0 Difficulty Rogue Special Mode None Game No. 22 Rogue 22 Adventurer 0 Explorer 0 Win Type - Total 0 Types 0/0/0/0/0/0/0/0/0 Lore% 21 Gallery% 25 Achievement% 21 Wizard Run 0 Options --------- Layout 1 ASCII 0 Keyboard 0 Movement Arrows Keybinds 0 Fullscreen 2 Font 24/Terminus Map View 50x35 Zoom Use 0% Tactical HUD 1 Map Filters NONE Filters NONE Steam 1 RUN: 57162943-1d8f-41a8-af66-9ad2b03a046a